[Event "*** Titled Tuesday Blitz"]
[Site "Chess.com"]
[Date "2021.04.27"]
[Round "9"]
[White "dretch"]
[Black "Konavets"]
[Result "0-1"]
[WhiteElo "2848"]
[BlackElo "2973"]
[TimeControl "180+1"]
[EndTime "11:41:58 PDT"]
[Termination "Konavets won on time"]

1. d4 {[%clk 0:03:00.9]} 1... Nf6 {[%clk 0:02:52.7]} 2. c4 {[%clk 0:03:00.9]}
2... e6 {[%clk 0:02:51.1]} 3. Nc3 {[%clk 0:03:01.1]} 3... Bb4 {[%clk 0:02:50.4]}
4. Qc2 {[%clk 0:03:01.3]} 4... d5 {[%clk 0:02:46.5]} 5. cxd5 {[%clk 0:03:00.8]}
5... exd5 {[%clk 0:02:43]} 6. Bg5 {[%clk 0:02:59.9]} 6... h6 {[%clk 0:02:42.6]}
7. Bxf6 {[%clk 0:02:58.8]} 7... Qxf6 {[%clk 0:02:42.4]} 8. a3 {[%clk 0:02:58.5]}
8... Bxc3+ {[%clk 0:02:42]} 9. Qxc3 {[%clk 0:02:58.5]} 9... O-O {[%clk
0:02:42.1]} 10. e3 {[%clk 0:02:59]} 10... Bf5 {[%clk 0:02:42]} 11. Ne2 {[%clk
0:02:58.1]} 11... Nd7 {[%clk 0:02:39]} 12. Ng3 {[%clk 0:02:54.2]} 12... Rac8
{[%clk 0:02:34.2]} 13. Nxf5 {[%clk 0:02:52.1]} 13... Qxf5 {[%clk 0:02:34.2]} 14.
Bd3 {[%clk 0:02:45.1]} 14... Qf6 {[%clk 0:02:30.1]} 15. b4 {[%clk 0:02:27.7]}
15... c5 {[%clk 0:02:17.2]} 16. bxc5 {[%clk 0:02:27.2]} 16... Nxc5 {[%clk
0:02:16.5]} 17. O-O {[%clk 0:02:26.6]} 17... Nxd3 {[%clk 0:02:16.8]} 18. Qxd3
{[%clk 0:02:26.6]} 18... Rc4 {[%clk 0:02:17.6]} 19. Rab1 {[%clk 0:02:24.2]}
19... b6 {[%clk 0:02:17.5]} 20. Rb5 {[%clk 0:01:43.7]} 20... Qc6 {[%clk
0:02:12.6]} 21. Qb3 {[%clk 0:01:43.4]} 21... Rb8 {[%clk 0:02:02.9]} 22. a4
{[%clk 0:01:35.2]} 22... a6 {[%clk 0:02:02.8]} 23. Rb4 {[%clk 0:01:25.5]} 23...
b5 {[%clk 0:02:03]} 24. axb5 {[%clk 0:01:17.8]} 24... Rxb5 {[%clk 0:02:01.3]}
25. Rxc4 {[%clk 0:01:15.1]} 25... dxc4 {[%clk 0:02:01.3]} 26. Qa4 {[%clk
0:01:09.4]} 26... c3 {[%clk 0:02:00.1]} 27. Qc2 {[%clk 0:00:36.5]} 27... Rb2
{[%clk 0:01:41.9]} 28. Qc1 {[%clk 0:00:32.7]} 28... Rd2 {[%clk 0:01:42.2]} 29.
h3 {[%clk 0:00:18.5]} 29... a5 {[%clk 0:01:41.2]} 30. Re1 {[%clk 0:00:07.8]}
30... a4 {[%clk 0:01:39.8]} 31. e4 {[%clk 0:00:02.9]} 31... Rxd4 {[%clk
0:01:39.1]} 32. Qe3 {[%clk 0:00:03.1]} 32... Qc4 {[%clk 0:01:38.3]} 33. Rc1
{[%clk 0:00:02.5]} 33... c2 {[%clk 0:01:38]} 34. Kh2 {[%clk 0:00:02.5]} 34...
Rd1 {[%clk 0:01:36.6]} 35. Kg3 {[%clk 0:00:01.4]} 35... Rxc1 {[%clk 0:01:36.9]}
36. Qxc1 {[%clk 0:00:02.3]} 36... a3 {[%clk 0:01:37.5]} 37. Qxa3 {[%clk
0:00:01.4]} 37... c1=Q {[%clk 0:01:37.4]} 0-1

[Event "*** Titled Tuesday Blitz"]
[Site "Chess.com"]
[Date "2021.04.27"]
[Round "9"]
[White "rpragchess"]
[Black "Rodalquilar"]
[Result "1-0"]
[WhiteElo "2898"]
[BlackElo "2768"]
[TimeControl "180+1"]
[EndTime "11:41:58 PDT"]
[Termination "rpragchess won by checkmate"]

1. d4 {[%clk 0:02:55.4]} 1... d5 {[%clk 0:03:00.2]} 2. Bf4 {[%clk 0:02:55.2]}
2... Nf6 {[%clk 0:03:00.3]} 3. e3 {[%clk 0:02:54.5]} 3... e6 {[%clk 0:03:00.7]}
4. Nf3 {[%clk 0:02:54.2]} 4... Bd6 {[%clk 0:03:01]} 5. Bd3 {[%clk 0:02:52.5]}
5... O-O {[%clk 0:03:01.2]} 6. Bg3 {[%clk 0:02:47.6]} 6... c5 {[%clk 0:02:59.9]}
7. Nbd2 {[%clk 0:02:42.1]} 7... Qc7 {[%clk 0:02:59.9]} 8. dxc5 {[%clk
0:02:40.7]} 8... Qxc5 {[%clk 0:03:00.8]} 9. c4 {[%clk 0:02:41.3]} 9... Bxg3
{[%clk 0:02:50]} 10. hxg3 {[%clk 0:02:40.1]} 10... dxc4 {[%clk 0:02:50.5]} 11.
Bxc4 {[%clk 0:02:16]} 11... Bd7 {[%clk 0:02:31.1]} 12. Rc1 {[%clk 0:02:13.9]}
12... Rc8 {[%clk 0:02:27.5]} 13. Rc3 {[%clk 0:02:05.8]} 13... Qd6 {[%clk
0:02:06.1]} 14. Rd3 {[%clk 0:01:46.6]} 14... Qe7 {[%clk 0:02:05.1]} 15. Ne5
{[%clk 0:01:45.2]} 15... Nc6 {[%clk 0:01:52]} 16. Nxd7 {[%clk 0:01:34.7]} 16...
Nxd7 {[%clk 0:01:52.2]} 17. Qh5 {[%clk 0:01:31.5]} 17... Nf6 {[%clk 0:01:39.5]}
18. Qg5 {[%clk 0:01:30.7]} 18... Nb4 {[%clk 0:01:28.3]} 19. Rc3 {[%clk
0:01:23.1]} 19... Rc5 {[%clk 0:01:28.4]} 20. Qh4 {[%clk 0:01:19.6]} 20... Rac8
{[%clk 0:01:14.8]} 21. Ne4 {[%clk 0:01:05.9]} 21... Rxc4 {[%clk 0:00:54.4]} 22.
Rxc4 {[%clk 0:01:01.7]} 22... Nd3+ {[%clk 0:00:43.8]} 23. Ke2 {[%clk 0:00:57.1]}
23... Rxc4 {[%clk 0:00:23.6]} 24. Nxf6+ {[%clk 0:00:57]} 24... gxf6 {[%clk
0:00:20.5]} 25. Qxh7+ {[%clk 0:00:56.8]} 25... Kf8 {[%clk 0:00:19.9]} 26. Qh8#
{[%clk 0:00:57.7]} 1-0

[Event "*** Titled Tuesday Blitz"]
[Site "Chess.com"]
[Date "2021.04.27"]
[Round "9"]
[White "MartinMatthiesen"]
[Black "maximych26"]
[Result "0-1"]
[WhiteElo "2440"]
[BlackElo "2320"]
[TimeControl "180+1"]
[EndTime "11:42:12 PDT"]
[Termination "maximych26 won by checkmate"]

1. b3 {[%clk 0:02:57.9]} 1... d5 {[%clk 0:02:58.8]} 2. Bb2 {[%clk 0:02:57.3]}
2... Nf6 {[%clk 0:02:59.3]} 3. e3 {[%clk 0:02:55.7]} 3... c6 {[%clk 0:02:59.8]}
4. f4 {[%clk 0:02:51.5]} 4... Bf5 {[%clk 0:02:59]} 5. Nf3 {[%clk 0:02:50.9]}
5... h6 {[%clk 0:02:59.1]} 6. Be2 {[%clk 0:02:41.3]} 6... e6 {[%clk 0:02:59.1]}
7. O-O {[%clk 0:02:41]} 7... Be7 {[%clk 0:02:59.6]} 8. Ne5 {[%clk 0:02:38.8]}
8... Nbd7 {[%clk 0:02:55.7]} 9. g4 {[%clk 0:02:10.1]} 9... Bh7 {[%clk
0:02:54.6]} 10. g5 {[%clk 0:02:01.7]} 10... hxg5 {[%clk 0:02:50.2]} 11. fxg5
{[%clk 0:02:01.3]} 11... Nxe5 {[%clk 0:02:48.8]} 12. Bxe5 {[%clk 0:02:00.1]}
12... Nd7 {[%clk 0:02:48.5]} 13. Bxg7 {[%clk 0:01:06]} 13... Rg8 {[%clk
0:02:47.6]} 14. Bb2 {[%clk 0:01:05.6]} 14... Bxg5 {[%clk 0:02:44.1]} 15. Kh1
{[%clk 0:01:04.6]} 15... Qe7 {[%clk 0:02:36.2]} 16. Nc3 {[%clk 0:01:00.1]} 16...
O-O-O {[%clk 0:02:34.9]} 17. Bf3 {[%clk 0:00:59.5]} 17... Ne5 {[%clk 0:02:26.5]}
18. Bg2 {[%clk 0:00:45.9]} 18... f6 {[%clk 0:02:23.6]} 19. Ne2 {[%clk
0:00:39.8]} 19... Qd6 {[%clk 0:02:21.7]} 20. Nf4 {[%clk 0:00:38.8]} 20... Rh8
{[%clk 0:02:18.1]} 21. Qe2 {[%clk 0:00:30]} 21... Bf5 {[%clk 0:02:15.9]} 22. Rf2
{[%clk 0:00:16.4]} 22... Ng4 {[%clk 0:02:14.2]} 23. h3 {[%clk 0:00:07.7]} 23...
Nxf2+ {[%clk 0:02:10.5]} 24. Qxf2 {[%clk 0:00:08.6]} 24... Bxf4 {[%clk
0:02:09.6]} 25. exf4 {[%clk 0:00:07.9]} 25... Bxh3 {[%clk 0:02:08.9]} 26. Bxf6
{[%clk 0:00:05.7]} 26... Bxg2+ {[%clk 0:01:45]} 27. Kxg2 {[%clk 0:00:06.6]}
27... Rdg8+ {[%clk 0:01:44.5]} 28. Kf3 {[%clk 0:00:04.4]} 28... Rh3+ {[%clk
0:01:42.7]} 29. Ke2 {[%clk 0:00:04.6]} 29... Rhg3 {[%clk 0:01:40.5]} 30. Be5
{[%clk 0:00:03.8]} 30... Qb4 {[%clk 0:01:34.1]} 31. Qxa7 {[%clk 0:00:02.4]}
31... Rg2+ {[%clk 0:01:33.1]} 32. Kf1 {[%clk 0:00:02]} 32... Rg1+ {[%clk
0:01:30.5]} 33. Ke2 {[%clk 0:00:02.1]} 33... R8g2+ {[%clk 0:01:28.9]} 34. Kf3
{[%clk 0:00:01.9]} 34... Qe4# {[%clk 0:01:25.4]} 0-1

[Event "*** Titled Tuesday Blitz"]
[Site "Chess.com"]
[Date "2021.04.27"]
[Round "9"]
[White "Irishchessman16"]
[Black "KonstantinB_1983"]
[Result "1-0"]
[WhiteElo "2321"]
[BlackElo "2492"]
[TimeControl "180+1"]
[EndTime "11:42:17 PDT"]
[Termination "Irishchessman16 won by checkmate"]

1. e4 {[%clk 0:02:59.8]} 1... d5 {[%clk 0:02:57.8]} 2. exd5 {[%clk 0:02:58.7]}
2... Qxd5 {[%clk 0:02:57.8]} 3. Nc3 {[%clk 0:02:58.7]} 3... Qd6 {[%clk
0:02:57.5]} 4. d4 {[%clk 0:02:56.7]} 4... Nf6 {[%clk 0:02:57.6]} 5. Bc4 {[%clk
0:02:54.1]} 5... a6 {[%clk 0:02:57.5]} 6. h3 {[%clk 0:02:52.5]} 6... Nc6 {[%clk
0:02:51.5]} 7. Nf3 {[%clk 0:02:52.2]} 7... Bf5 {[%clk 0:02:50.4]} 8. O-O {[%clk
0:02:50]} 8... Nb4 {[%clk 0:02:45.7]} 9. Bb3 {[%clk 0:02:49.2]} 9... e6 {[%clk
0:02:44.2]} 10. Bg5 {[%clk 0:02:46.3]} 10... Be7 {[%clk 0:02:42.5]} 11. Qe2
{[%clk 0:02:34.3]} 11... O-O {[%clk 0:02:33.3]} 12. Rad1 {[%clk 0:02:26.7]}
12... Rfe8 {[%clk 0:02:28]} 13. Qe5 {[%clk 0:02:15.2]} 13... Bxc2 {[%clk
0:02:16.4]} 14. Bxc2 {[%clk 0:02:07]} 14... Nxc2 {[%clk 0:02:14.9]} 15. Rd2
{[%clk 0:02:07.4]} 15... Nb4 {[%clk 0:02:09.6]} 16. Ne4 {[%clk 0:02:01.5]} 16...
Nxe4 {[%clk 0:02:06.4]} 17. Qxe4 {[%clk 0:02:01.1]} 17... c6 {[%clk 0:01:51.7]}
18. Qh4 {[%clk 0:01:56.1]} 18... h6 {[%clk 0:01:40.5]} 19. Bxe7 {[%clk
0:01:54.7]} 19... Qxe7 {[%clk 0:01:40.3]} 20. Qh5 {[%clk 0:01:54.5]} 20... Rad8
{[%clk 0:01:30.8]} 21. Re2 {[%clk 0:01:50.8]} 21... Rd5 {[%clk 0:01:28.5]} 22.
Re5 {[%clk 0:01:50.1]} 22... Qf6 {[%clk 0:01:21.6]} 23. Rfe1 {[%clk 0:01:45.4]}
23... Nd3 {[%clk 0:01:18.7]} 24. R1e4 {[%clk 0:01:40.3]} 24... Nxe5 {[%clk
0:01:15.5]} 25. dxe5 {[%clk 0:01:40.2]} 25... Qf5 {[%clk 0:01:07.5]} 26. Qh4
{[%clk 0:01:40.5]} 26... Red8 {[%clk 0:00:52.1]} 27. Rg4 {[%clk 0:01:35.1]}
27... Qh7 {[%clk 0:00:50.5]} 28. Qe7 {[%clk 0:01:28.1]} 28... R5d7 {[%clk
0:00:49]} 29. Qc5 {[%clk 0:01:17.6]} 29... Qd3 {[%clk 0:00:44.8]} 30. Kh2 {[%clk
0:01:11.8]} 30... Kh7 {[%clk 0:00:42.9]} 31. Qc1 {[%clk 0:01:09.2]} 31... Rd5
{[%clk 0:00:34.7]} 32. Qf4 {[%clk 0:01:08.9]} 32... R8d7 {[%clk 0:00:33.3]} 33.
Qb4 {[%clk 0:01:04.1]} 33... c5 {[%clk 0:00:32.2]} 34. Qf4 {[%clk 0:00:58.8]}
34... b5 {[%clk 0:00:31.8]} 35. Qg3 {[%clk 0:00:57.4]} 35... Qf5 {[%clk
0:00:30.4]} 36. Rxg7+ {[%clk 0:00:56.7]} 36... Kh8 {[%clk 0:00:30]} 37. Rg8+
{[%clk 0:00:57.2]} 37... Kh7 {[%clk 0:00:28.2]} 38. Qg7# {[%clk 0:00:58.1]} 1-0

[Event "*** Titled Tuesday Blitz"]
[Site "Chess.com"]
[Date "2021.04.27"]
[Round "9"]
[White "Ze-Pequeno"]
[Black "Andrii_Prydun"]
[Result "0-1"]
[WhiteElo "2221"]
[BlackElo "2345"]
[TimeControl "180+1"]
[EndTime "11:42:19 PDT"]
[Termination "Andrii_Prydun won on time"]

1. e4 {[%clk 0:02:59.4]} 1... d5 {[%clk 0:02:59.1]} 2. exd5 {[%clk 0:02:59.1]}
2... Qxd5 {[%clk 0:03:00]} 3. Nc3 {[%clk 0:02:58.8]} 3... Qd6 {[%clk 0:03:00.2]}
4. d4 {[%clk 0:02:56.9]} 4... Nf6 {[%clk 0:03:00.1]} 5. Nf3 {[%clk 0:02:57]}
5... c6 {[%clk 0:02:59.9]} 6. Ne5 {[%clk 0:02:50.9]} 6... Nbd7 {[%clk
0:02:58.7]} 7. Nc4 {[%clk 0:02:21.9]} 7... Qc7 {[%clk 0:02:57.9]} 8. Qf3 {[%clk
0:02:22.2]} 8... Nb6 {[%clk 0:02:57.6]} 9. Ne5 {[%clk 0:02:20.4]} 9... Qd8
{[%clk 0:02:51.4]} 10. Bf4 {[%clk 0:01:59]} 10... h5 {[%clk 0:02:48.2]} 11. h3
{[%clk 0:01:56.8]} 11... Bg4 {[%clk 0:02:46.6]} 12. Qd3 {[%clk 0:01:50.3]} 12...
Be6 {[%clk 0:02:44.2]} 13. O-O-O {[%clk 0:01:33]} 13... Nbd5 {[%clk 0:02:31.5]}
14. Nxd5 {[%clk 0:01:27.2]} 14... Nxd5 {[%clk 0:02:32.4]} 15. Bd2 {[%clk
0:01:24.6]} 15... g6 {[%clk 0:02:27]} 16. c4 {[%clk 0:01:21.4]} 16... Nb6 {[%clk
0:02:16.3]} 17. Qc3 {[%clk 0:01:09.8]} 17... Bg7 {[%clk 0:02:15.5]} 18. Bf4
{[%clk 0:01:03.6]} 18... O-O {[%clk 0:02:12.8]} 19. Be2 {[%clk 0:01:02.4]} 19...
Rc8 {[%clk 0:02:03.2]} 20. g4 {[%clk 0:01:00.5]} 20... h4 {[%clk 0:02:01.2]} 21.
Kb1 {[%clk 0:00:52.3]} 21... Na4 {[%clk 0:02:00.7]} 22. Qb4 {[%clk 0:00:48.4]}
22... b5 {[%clk 0:02:00.5]} 23. cxb5 {[%clk 0:00:44.1]} 23... cxb5 {[%clk
0:02:00.4]} 24. Bxb5 {[%clk 0:00:45]} 24... Nb6 {[%clk 0:01:49.7]} 25. Qa5
{[%clk 0:00:38.8]} 25... Qd5 {[%clk 0:01:47.7]} 26. Rhe1 {[%clk 0:00:28.2]}
26... Nc4 {[%clk 0:01:43.6]} 27. Nxc4 {[%clk 0:00:25.2]} 27... Rxc4 {[%clk
0:01:43.7]} 28. Qa6 {[%clk 0:00:12.9]} 28... Rb4 {[%clk 0:01:42.1]} 29. Bc6
{[%clk 0:00:08.3]} 29... Qd8 {[%clk 0:01:13.9]} 30. Bd6 {[%clk 0:00:02.6]} 30...
Qxd6 {[%clk 0:01:11.9]} 0-1

[Event "*** Titled Tuesday Blitz"]
[Site "Chess.com"]
[Date "2021.04.27"]
[Round "9"]
[White "CM_rui"]
[Black "chessprincesa1"]
[Result "1-0"]
[WhiteElo "2511"]
[BlackElo "2332"]
[TimeControl "180+1"]
[EndTime "11:42:20 PDT"]
[Termination "CM_rui won by resignation"]

1. e4 {[%clk 0:03:00.9]} 1... e5 {[%clk 0:02:58.9]} 2. Nc3 {[%clk 0:03:00.7]}
2... Nf6 {[%clk 0:02:57.3]} 3. f4 {[%clk 0:03:00.9]} 3... d5 {[%clk 0:02:55.2]}
4. fxe5 {[%clk 0:03:00.9]} 4... Nxe4 {[%clk 0:02:55]} 5. d3 {[%clk 0:03:00.3]}
5... Qh4+ {[%clk 0:02:52.7]} 6. g3 {[%clk 0:03:00.1]} 6... Nxg3 {[%clk
0:02:39.8]} 7. Nf3 {[%clk 0:02:59.6]} 7... Qg4 {[%clk 0:02:35]} 8. hxg3 {[%clk
0:02:57]} 8... Qxg3+ {[%clk 0:02:34.4]} 9. Kd2 {[%clk 0:02:45.2]} 9... Bg4
{[%clk 0:02:30.1]} 10. Be2 {[%clk 0:02:11.8]} 10... g6 {[%clk 0:02:30]} 11. Nxd5
{[%clk 0:02:06.6]} 11... Bxf3 {[%clk 0:02:06.8]} 12. Bxf3 {[%clk 0:01:39.5]}
12... Qg5+ {[%clk 0:02:01.8]} 13. Ke1 {[%clk 0:01:29.4]} 13... Qg3+ {[%clk
0:01:53.6]} 14. Kf1 {[%clk 0:01:29.4]} 14... Bc5 {[%clk 0:01:31.3]} 15. Nf6+
{[%clk 0:01:19.1]} 15... Kd8 {[%clk 0:01:27]} 16. Ne4 {[%clk 0:01:14.1]} 16...
Qxe5 {[%clk 0:01:23.4]} 17. d4 {[%clk 0:01:04.4]} 17... Bxd4 {[%clk 0:01:07.1]}
18. c3 {[%clk 0:00:52.3]} 18... Qb5+ {[%clk 0:01:03.5]} 19. Kg2 {[%clk
0:00:47.6]} 19... Nd7 {[%clk 0:00:56.1]} 20. Qxd4 {[%clk 0:00:44.6]} 20... Re8
{[%clk 0:00:51.6]} 21. Rxh7 {[%clk 0:00:33.1]} 21... f5 {[%clk 0:00:46.8]} 22.
Bg5+ {[%clk 0:00:28.1]} 22... Kc8 {[%clk 0:00:44]} 23. Qxd7+ {[%clk 0:00:19.2]}
23... Qxd7 {[%clk 0:00:40.6]} 24. Rxd7 {[%clk 0:00:20.1]} 24... fxe4 {[%clk
0:00:39.1]} 25. Bg4 {[%clk 0:00:16.8]} 1-0

[Event "*** Titled Tuesday Blitz"]
[Site "Chess.com"]
[Date "2021.04.27"]
[Round "9"]
[White "tylityli"]
[Black "profofchess"]
[Result "0-1"]
[WhiteElo "2328"]
[BlackElo "2474"]
[TimeControl "180+1"]
[EndTime "11:42:22 PDT"]
[Termination "profofchess won by resignation"]

1. d4 {[%clk 0:03:00.9]} 1... Nf6 {[%clk 0:02:59.3]} 2. c4 {[%clk 0:03:00.3]}
2... e6 {[%clk 0:02:59.5]} 3. Nc3 {[%clk 0:02:58.5]} 3... Bb4 {[%clk 0:02:59.5]}
4. e3 {[%clk 0:02:57.6]} 4... O-O {[%clk 0:02:58.9]} 5. Ne2 {[%clk 0:02:57]}
5... Re8 {[%clk 0:02:58.7]} 6. a3 {[%clk 0:02:56.5]} 6... Bf8 {[%clk 0:02:58.7]}
7. d5 {[%clk 0:02:56]} 7... a5 {[%clk 0:02:58.7]} 8. g3 {[%clk 0:02:55.1]} 8...
Na6 {[%clk 0:02:55.5]} 9. Bg2 {[%clk 0:02:54.6]} 9... Nc5 {[%clk 0:02:55.3]} 10.
b3 {[%clk 0:02:47.3]} 10... exd5 {[%clk 0:02:51.2]} 11. Nxd5 {[%clk 0:02:39.8]}
11... Nxd5 {[%clk 0:02:50.2]} 12. Bxd5 {[%clk 0:02:34.7]} 12... a4 {[%clk
0:02:45.6]} 13. Nd4 {[%clk 0:02:28.4]} 13... axb3 {[%clk 0:02:17.1]} 14. Nxb3
{[%clk 0:02:27.1]} 14... Na4 {[%clk 0:02:15.1]} 15. O-O {[%clk 0:01:46.6]} 15...
Nc3 {[%clk 0:02:10.4]} 16. Qc2 {[%clk 0:01:42.8]} 16... Nxd5 {[%clk 0:02:07.9]}
17. cxd5 {[%clk 0:01:43.7]} 17... b6 {[%clk 0:01:42.9]} 18. e4 {[%clk
0:01:38.6]} 18... Bb7 {[%clk 0:01:08.1]} 19. Bb2 {[%clk 0:01:17.1]} 19... c6
{[%clk 0:01:02.6]} 20. Rfd1 {[%clk 0:01:02.2]} 20... cxd5 {[%clk 0:01:00]} 21.
exd5 {[%clk 0:01:00.5]} 21... Qg5 {[%clk 0:00:52.4]} 22. f4 {[%clk 0:00:56.3]}
22... Qh5 {[%clk 0:00:51.5]} 23. Qd3 {[%clk 0:00:25.9]} 23... Re2 {[%clk
0:00:42]} 24. Be5 {[%clk 0:00:22]} 24... Qxh2+ {[%clk 0:00:40.7]} 0-1

[Event "*** Titled Tuesday Blitz"]
[Site "Chess.com"]
[Date "2021.04.27"]
[Round "9"]
[White "GMJustin"]
[Black "rynos0411"]
[Result "0-1"]
[WhiteElo "2295"]
[BlackElo "2468"]
[TimeControl "180+1"]
[EndTime "11:42:26 PDT"]
[Termination "rynos0411 won on time"]

1. e4 {[%clk 0:02:57.3]} 1... c6 {[%clk 0:02:58.2]} 2. d4 {[%clk 0:02:56.7]}
2... d5 {[%clk 0:02:58.5]} 3. e5 {[%clk 0:00:29.7]} 3... Bf5 {[%clk 0:02:57.3]}
4. Bd3 {[%clk 0:00:29.8]} 4... Bxd3 {[%clk 0:02:56.5]} 5. Qxd3 {[%clk
0:00:30.4]} 5... Qa5+ {[%clk 0:02:56.9]} 6. c3 {[%clk 0:00:29.5]} 6... Qa6
{[%clk 0:02:51.9]} 7. Qg3 {[%clk 0:00:26.3]} 7... e6 {[%clk 0:02:51.6]} 8. Ne2
{[%clk 0:00:26.3]} 8... Ne7 {[%clk 0:02:48.1]} 9. Nd2 {[%clk 0:00:25.3]} 9... c5
{[%clk 0:02:47.4]} 10. Nf3 {[%clk 0:00:22.2]} 10... Nbc6 {[%clk 0:02:47.1]} 11.
Qf4 {[%clk 0:00:19.4]} 11... h6 {[%clk 0:02:36.1]} 12. Qd2 {[%clk 0:00:17.9]}
12... Rc8 {[%clk 0:02:33.2]} 13. O-O {[%clk 0:00:17.7]} 13... Nf5 {[%clk
0:02:33.1]} 14. Ng3 {[%clk 0:00:16.5]} 14... Nxg3 {[%clk 0:02:22.9]} 15. hxg3
{[%clk 0:00:16.5]} 15... Be7 {[%clk 0:02:22.5]} 16. Re1 {[%clk 0:00:15.9]} 16...
Qb6 {[%clk 0:02:13.7]} 17. Qe2 {[%clk 0:00:15]} 17... cxd4 {[%clk 0:02:13.4]}
18. cxd4 {[%clk 0:00:15]} 18... O-O {[%clk 0:02:09.6]} 19. Be3 {[%clk 0:00:15]}
19... Nb4 {[%clk 0:02:06.6]} 20. Red1 {[%clk 0:00:11.8]} 20... Rc2 {[%clk
0:02:04.3]} 21. Rd2 {[%clk 0:00:11.8]} 21... Rfc8 {[%clk 0:02:04.7]} 22. Ne1
{[%clk 0:00:10.9]} 22... Rc1 {[%clk 0:02:02.8]} 23. Rd1 {[%clk 0:00:06.8]} 23...
Rxd1 {[%clk 0:01:54.5]} 24. Qxd1 {[%clk 0:00:06]} 24... Qa6 {[%clk 0:01:51.6]}
25. a3 {[%clk 0:00:05.4]} 25... Nc6 {[%clk 0:01:51.8]} 26. Nd3 {[%clk
0:00:04.3]} 26... Qb6 {[%clk 0:01:47.7]} 27. Rc1 {[%clk 0:00:04.3]} 27... Rb8
{[%clk 0:01:42.8]} 28. Nc5 {[%clk 0:00:04.3]} 28... Qxb2 {[%clk 0:01:39.6]} 29.
Rb1 {[%clk 0:00:04.4]} 29... Qxa3 {[%clk 0:01:38.6]} 30. Rxb7 {[%clk 0:00:03.5]}
30... Rxb7 {[%clk 0:01:29.7]} 31. Nxb7 {[%clk 0:00:03.5]} 31... Bb4 {[%clk
0:01:26.8]} 32. Qc2 {[%clk 0:00:03.1]} 32... Qc3 {[%clk 0:01:20.7]} 33. Qa4
{[%clk 0:00:02.3]} 33... Nxd4 {[%clk 0:01:18.5]} 34. Bxd4 {[%clk 0:00:01.9]}
34... Qxd4 {[%clk 0:01:18.6]} 35. Qe8+ {[%clk 0:00:01.9]} 35... Kh7 {[%clk
0:01:19.1]} 36. Qxf7 {[%clk 0:00:01.6]} 36... Qxe5 {[%clk 0:01:19.1]} 37. Nd8
{[%clk 0:00:01.4]} 37... a5 {[%clk 0:01:10.8]} 38. Nxe6 {[%clk 0:00:01.1]} 38...
a4 {[%clk 0:01:10.5]} 0-1

[Event "*** Titled Tuesday Blitz"]
[Site "Chess.com"]
[Date "2021.04.27"]
[Round "9"]
[White "KubaGepard"]
[Black "MeekinsKris"]
[Result "1-0"]
[WhiteElo "2399"]
[BlackElo "2221"]
[TimeControl "180+1"]
[EndTime "11:42:27 PDT"]
[Termination "KubaGepard won by resignation"]

1. d4 {[%clk 0:03:00.9]} 1... Nf6 {[%clk 0:02:59.7]} 2. Nf3 {[%clk 0:03:01.8]}
2... g6 {[%clk 0:02:59.6]} 3. g3 {[%clk 0:03:02.5]} 3... Bg7 {[%clk 0:02:59.7]}
4. Bg2 {[%clk 0:03:03.4]} 4... O-O {[%clk 0:02:59.8]} 5. O-O {[%clk 0:03:03.9]}
5... d6 {[%clk 0:03:00.3]} 6. c4 {[%clk 0:03:03.2]} 6... Nc6 {[%clk 0:03:00.5]}
7. Nc3 {[%clk 0:03:02.8]} 7... e5 {[%clk 0:02:59.8]} 8. dxe5 {[%clk 0:03:03.7]}
8... dxe5 {[%clk 0:02:59.4]} 9. Bg5 {[%clk 0:03:02.1]} 9... Be6 {[%clk
0:02:58.1]} 10. Qa4 {[%clk 0:03:01]} 10... h6 {[%clk 0:02:54.8]} 11. Rfd1 {[%clk
0:02:50.5]} 11... Qe8 {[%clk 0:02:01.2]} 12. Bxf6 {[%clk 0:02:44.7]} 12... Bxf6
{[%clk 0:02:02.1]} 13. Nd5 {[%clk 0:02:40.3]} 13... Bxd5 {[%clk 0:01:46]} 14.
cxd5 {[%clk 0:02:32.4]} 14... Nd4 {[%clk 0:01:45.8]} 15. Qxe8 {[%clk 0:02:29.4]}
15... Rfxe8 {[%clk 0:01:46.7]} 16. e3 {[%clk 0:02:25.4]} 16... Nxf3+ {[%clk
0:01:41.3]} 17. Bxf3 {[%clk 0:02:26.3]} 17... Be7 {[%clk 0:01:38.6]} 18. Rac1
{[%clk 0:02:24.3]} 18... Bd6 {[%clk 0:01:38.9]} 19. Rc4 {[%clk 0:02:20.8]} 19...
f5 {[%clk 0:01:37.9]} 20. e4 {[%clk 0:02:20.3]} 20... Kg7 {[%clk 0:01:32.8]} 21.
Rdc1 {[%clk 0:02:17.5]} 21... Rac8 {[%clk 0:01:30.6]} 22. R1c2 {[%clk 0:02:16]}
22... a6 {[%clk 0:01:29.1]} 23. Kg2 {[%clk 0:02:15.2]} 23... Kf6 {[%clk
0:01:27.5]} 24. h4 {[%clk 0:02:13.3]} 24... f4 {[%clk 0:01:08.4]} 25. h5 {[%clk
0:02:11.7]} 25... g5 {[%clk 0:01:08.1]} 26. Bg4 {[%clk 0:02:09]} 26... Rcd8
{[%clk 0:01:07.5]} 27. Bf5 {[%clk 0:02:08.7]} 27... Re7 {[%clk 0:01:05.4]} 28.
g4 {[%clk 0:02:07.2]} 28... Rb8 {[%clk 0:01:05.2]} 29. Kf1 {[%clk 0:02:03.4]}
29... Rd8 {[%clk 0:01:05.5]} 30. Ke2 {[%clk 0:02:02.5]} 30... Rb8 {[%clk
0:01:05.9]} 31. R2c3 {[%clk 0:02:01.4]} 31... Rd8 {[%clk 0:01:06.1]} 32. Ke1
{[%clk 0:01:59.9]} 32... Rb8 {[%clk 0:01:06.3]} 33. Kd1 {[%clk 0:01:59.4]} 33...
Rd8 {[%clk 0:01:06.4]} 34. Kc2 {[%clk 0:01:58.7]} 34... Rb8 {[%clk 0:01:06.7]}
35. Kb3 {[%clk 0:01:58.3]} 35... Rd8 {[%clk 0:01:06.7]} 36. a4 {[%clk
0:01:57.6]} 36... Rb8 {[%clk 0:01:06.7]} 37. a5 {[%clk 0:01:56.7]} 37... Rd8
{[%clk 0:01:06.2]} 38. Ka2 {[%clk 0:01:56.3]} 38... Rb8 {[%clk 0:01:06.1]} 39.
Kb1 {[%clk 0:01:55.9]} 39... Rd8 {[%clk 0:01:05.7]} 40. Rb3 {[%clk 0:01:56]}
40... Rb8 {[%clk 0:01:05.6]} 41. Rc6 {[%clk 0:01:55.9]} 41... Kg7 {[%clk
0:00:57.4]} 42. Rxa6 {[%clk 0:01:54]} 42... Kf6 {[%clk 0:00:48.1]} 43. Ra7
{[%clk 0:01:51.2]} 43... b6 {[%clk 0:00:44]} 44. axb6 {[%clk 0:01:48.2]} 44...
Rxb6 {[%clk 0:00:40.5]} 45. Rxb6 {[%clk 0:01:46.5]} 45... cxb6 {[%clk
0:00:41.4]} 46. Ra8 {[%clk 0:01:45.5]} 46... Bc5 {[%clk 0:00:38.9]} 47. f3
{[%clk 0:01:41.8]} 47... Rc7 {[%clk 0:00:33.3]} 48. Rh8 {[%clk 0:01:40.5]} 48...
Be3 {[%clk 0:00:24.2]} 49. Rxh6+ {[%clk 0:01:39.7]} 49... Ke7 {[%clk 0:00:21.9]}
50. Rh7+ {[%clk 0:01:40.6]} 50... Kd6 {[%clk 0:00:21.8]} 51. Rxc7 {[%clk
0:01:33.7]} 51... Kxc7 {[%clk 0:00:22.7]} 52. h6 {[%clk 0:01:33.9]} 1-0